fUSD/lending_fUSD_20250202
["ID","MTS","AMOUNT","RATE_DAILY","PERIOD"]
[351271501,1738504292241,-500.0,0.0001178,2]
[351271502,1738504292255,-2722.25,0.0001178,2]
[351271503,1738504292269,-1769.98,0.0001178,2]
[351271504,1738504292281,-760.42,0.0001178,2]
[351271505,1738504292293,-500.0,0.0001178,2]
[351271506,1738504292306,-500.0,0.0001178,2]
[351271507,1738504292319,-2868.69,0.0001178,2]
[351271508,1738504292331,-500.0,0.0001178,2]
[351271509,1738504292342,-500.0,0.0001178,2]
[351271510,1738504292354,-500.0,0.0001178,2]
[351271511,1738504292365,-578.7,0.0001178,2]
[351271512,1738504292377,-500.0,0.0001178,2]
[351271513,1738504292389,-500.0,0.0001178,2]
[351271514,1738504292401,-500.0,0.0001178,2]
[351271515,1738504292413,-812.08,0.0001178,2]
[351271516,1738504292425,-1031.69,0.0001178,2]
[351271517,1738504292441,-921.95,0.0001178,2]
[351271518,1738504292453,-500.0,0.0001178,2]
[351271519,1738504292466,-500.0,0.0001178,2]
[351271520,1738504292478,-2430.17,0.0001178,2]
[351271521,1738504292489,-500.0,0.0001178,2]
[351271522,1738504292501,-2706.0,0.0001178,2]
[351271523,1738504292512,-500.0,0.0001178,2]
[351271524,1738504292523,-500.0,0.0001178,2]
[351271525,1738504292536,-500.0,0.0001178,2]
[351271526,1738504292547,-500.0,0.0001178,2]
[351271527,1738504292559,-500.0,0.0001178,2]
[351271528,1738504292571,-1539.03,0.0001178,2]
[351271529,1738504292583,-666.52,0.0001178,2]
[351271530,1738504292596,-667.34,0.0001178,2]
[351271531,1738504292608,-500.0,0.0001178,2]
[351271532,1738504292621,-954.44,0.0001178,2]
[351271533,1738504292634,-500.0,0.0001178,2]
[351271534,1738504292646,-500.0,0.0001178,2]
[351271535,1738504292658,-287.47917158,0.0001178,2]
[351271536,1738504292676,-525.67511718,0.0001178,2]
[351271537,1738504293894,-500.0,0.00010958,2]
[351271538,1738504293904,-500.0,0.00010958,2]
[351271539,1738504293914,-500.0,0.00011095,2]
[351271540,1738504293924,-500.0,0.00011095,2]
[351271541,1738504293934,-500.0,0.00011232,2]
[351271542,1738504293947,-500.0,0.00011232,2]
[351271543,1738504293957,-500.0,0.00011369,2]
[351271544,1738504293967,-500.0,0.00011369,2]
[351271545,1738504293977,-468.09164372,0.00011406,2]
[351271546,1738504293987,-502.02260757,0.00011506,2]
[351271547,1738504293998,-1518.56571124,0.0001178,2]
[351271548,1738504294009,-541.4,0.0001178,2]
[351271549,1738504294019,-2822.71,0.0001178,2]
[351271550,1738504294030,-500.0,0.0001178,2]
[351271551,1738504294041,-469.36272651,0.0001178,2]
[351271552,1738504294051,-623.4,0.0001178,2]
[351271553,1738504294061,-1479.26,0.0001178,2]
[351271554,1738504294071,-772.05,0.0001178,2]
[351271555,1738504294081,-500.0,0.0001178,2]
[351271556,1738504294092,-500.0,0.0001178,2]
[351271557,1738504294102,-500.0,0.0001178,2]
[351271558,1738504294112,-500.0,0.0001178,2]
[351271559,1738504294122,-500.0,0.0001178,2]
[351271560,1738504294133,-500.0,0.0001178,2]
[351271561,1738504294143,-662.12,0.0001178,2]
[351271562,1738504294153,-1170.81,0.0001178,2]
[351271563,1738504294165,-500.0,0.0001178,2]
[351271564,1738504294177,-500.0,0.0001178,2]
[351271565,1738504294188,-212.79669918,0.0001178,2]
[351271566,1738504294201,-262.335,0.0001178,2]
[351271567,1738504294413,-1176.15830082,0.0001178,2]
[351271568,1738504294424,-500.0,0.0001178,2]
[351271569,1738504294434,-500.0,0.0001178,2]
[351271570,1738504294448,-500.0,0.0001178,2]
[351271571,1738504294458,-500.0,0.0001178,2]
[351271572,1738504294468,-578.91,0.0001178,2]
[351271573,1738504294478,-500.0,0.0001178,2]
[351271574,1738504294488,-500.0,0.0001178,2]
[351271575,1738504294499,-1770.67,0.0001178,2]
[351271576,1738504294510,-772.75,0.0001178,2]
[351271577,1738504294520,-500.0,0.0001178,2]
[351271578,1738504294531,-500.0,0.0001178,2]
[351271579,1738504294541,-630.26,0.0001178,2]
[351271580,1738504294551,-500.0,0.0001178,2]
[351271581,1738504294562,-500.0,0.0001178,2]
[351271582,1738504294573,-500.0,0.0001178,2]
[351271583,1738504294583,-382.48529843,0.0001178,2]
[351271584,1738504294594,-1856.66,0.0001178,2]
[351271585,1738504294604,-500.0,0.0001178,2]
[351271586,1738504294615,-543.44336609,0.0001178,2]
[351271587,1738504294625,-150.74080478,0.0001178,2]
[351271588,1738504294634,-1120.78,0.0001178,2]
[351271589,1738504294644,-500.0,0.0001178,2]
[351271590,1738504294653,-500.0,0.0001178,2]
[351271591,1738504294663,-628.73,0.0001178,2]
[351271592,1738504294672,-1864.42,0.0001178,2]
[351271593,1738504294681,-1425.68,0.0001178,2]
[351271594,1738504294692,-512.0851516,0.0001178,2]
[351271595,1738504294704,-1199.36,0.0001178,2]
[351271596,1738504294714,-500.0,0.0001178,2]
[351271597,1738504294726,-500.0,0.0001178,2]
[351271598,1738504294738,-1349.02,0.0001178,2]
[351271599,1738504294751,-500.0,0.0001178,2]
[351271600,1738504294764,-500.0,0.0001178,2]
[351271601,1738504294774,-650.93,0.0001178,2]
[351271602,1738504294784,-2027.77,0.0001178,2]
[351271603,1738504294793,-500.0,0.0001178,2]
[351271604,1738504294803,-3335.804076,0.0001178,2]
[351271605,1738504294812,-500.0,0.0001178,2]
[351271606,1738504294821,-834.11,0.0001178,2]
[351271607,1738504294830,-717.48,0.0001178,2]
[351271608,1738504294839,-193.24654,0.0001178,2]
[351271609,1738504294848,-500.0,0.0001178,2]
[351271610,1738504294857,-2865.11,0.0001178,2]
[351271611,1738504294866,-500.0,0.0001178,2]
[351271612,1738504294876,-1105.21,0.0001178,2]
[351271613,1738504294885,-659.22,0.0001178,2]
[351271614,1738504294895,-2288.47,0.0001178,2]
[351271615,1738504294903,-928.34,0.0001178,2]
[351271616,1738504294913,-500.0,0.0001178,2]
[351271617,1738504294923,-500.0,0.0001178,2]
[351271618,1738504294932,-1113.9,0.0001178,2]
[351271619,1738504294943,-1623.29,0.0001178,2]
[351271620,1738504294952,-613.85,0.0001178,2]
[351271621,1738504294961,-154.76099442,0.0001178,2]
[351271622,1738504294970,-526.08214798,0.0001178,2]
[351271623,1738504294979,-747.66,0.0001178,2]
[351271624,1738504294989,-500.0,0.0001178,2]
[351271625,1738504294998,-1677.4,0.0001178,2]
[351271626,1738504295007,-500.0,0.0001178,2]
[351271627,1738504295016,-500.0,0.0001178,2]
[351271628,1738504295025,-595.96,0.0001178,2]
[351271629,1738504295033,-1365.65,0.0001178,2]
[351271630,1738504295042,-500.0,0.0001178,2]
[351271631,1738504295051,-500.0,0.0001178,2]
[351271632,1738504295060,-963.28,0.0001178,2]
[351271633,1738504295069,-2940.584215,0.0001178,2]
[351271634,1738504295078,-777.91,0.0001178,2]
[351271635,1738504295087,-500.0,0.0001178,2]
[351271636,1738504295096,-961.42,0.0001178,2]
[351271637,1738504295106,-500.0,0.0001178,2]
[351271638,1738504295115,-500.0,0.0001178,2]
[351271639,1738504295125,-500.0,0.0001178,2]
[351271640,1738504295135,-500.0,0.0001178,2]
[351271641,1738504295144,-500.0,0.0001178,2]
[351271642,1738504295153,-1257.0,0.0001178,2]
[351271643,1738504295163,-500.0,0.0001178,2]
[351271644,1738504295175,-500.0,0.0001178,2]
[351271645,1738504295184,-513.62,0.0001178,2]
[351271646,1738504295194,-639.1,0.0001178,2]
[351271647,1738504295203,-1002.75,0.0001178,2]
[351271648,1738504295214,-500.0,0.0001178,2]
[351271649,1738504295223,-500.0,0.0001178,2]
[351271650,1738504295233,-500.0,0.0001178,2]
[351271651,1738504295242,-1576.63,0.0001178,2]
[351271652,1738504295252,-1515.97,0.0001178,2]
[351271653,1738504295263,-701.82,0.0001178,2]
[351271654,1738504295273,-600.61,0.0001178,2]
[351271655,1738504295283,-500.0,0.0001178,2]
[351271656,1738504295293,-500.0,0.0001178,2]
[351271657,1738504295302,-937.03,0.0001178,2]
[351271658,1738504295312,-500.0,0.0001178,2]
[351271659,1738504295322,-500.0,0.0001178,2]
[351271660,1738504295331,-500.0,0.0001178,2]
[351271661,1738504295341,-790.34,0.0001178,2]
[351271662,1738504295350,-500.0,0.0001178,2]
[351271663,1738504295361,-558.08,0.0001178,2]
[351271664,1738504295371,-691.86,0.0001178,2]
[351271665,1738504295380,-751.26,0.0001178,2]
[351271666,1738504295390,-500.0,0.0001178,2]
[351271667,1738504295399,-311.65293962,0.0001178,2]
[351271668,1738504295409,-951.95,0.0001178,2]
[351271669,1738504295418,-500.0,0.0001178,2]
[351271670,1738504295428,-957.29,0.0001178,2]
[351271671,1738504295439,-2234.14,0.0001178,2]
[351271672,1738504295448,-500.0,0.0001178,2]
[351271673,1738504295458,-976.1,0.0001178,2]
[351271674,1738504295468,-500.0,0.0001178,2]
[351271675,1738504295478,-872.1,0.0001178,2]
[351271676,1738504295488,-500.0,0.0001178,2]
[351271677,1738504295498,-500.0,0.0001178,2]
[351271678,1738504295508,-558.8,0.0001178,2]
[351271679,1738504295519,-500.0,0.0001178,2]
[351271680,1738504295529,-500.0,0.0001178,2]
[351271681,1738504295538,-972.87,0.0001178,2]
[351271682,1738504295547,-500.0,0.0001178,2]
[351271683,1738504295557,-1646.16,0.0001178,2]
[351271684,1738504295567,-541.68,0.0001178,2]
[351271685,1738504295577,-1101.2,0.0001178,2]
[351271686,1738504295587,-500.0,0.0001178,2]
[351271687,1738504295596,-1110.27,0.0001178,2]
[351271688,1738504295606,-500.0,0.0001178,2]
[351271689,1738504295616,-500.0,0.0001178,2]
[351271690,1738504295625,-692.77,0.0001178,2]
[351271691,1738504295635,-1369.05,0.0001178,2]
[351271692,1738504295644,-500.0,0.0001178,2]
[351271693,1738504295654,-2276.42,0.0001178,2]
[351271694,1738504295663,-874.2,0.0001178,2]
[351271695,1738504295673,-500.0,0.0001178,2]
[351271696,1738504295682,-500.0,0.0001178,2]
[351271697,1738504295692,-500.0,0.0001178,2]
[351271698,1738504295702,-1986.06,0.0001178,2]
[351271699,1738504295711,-894.65,0.0001178,2]
[351271700,1738504295722,-500.0,0.0001178,2]
[351271701,1738504295732,-500.0,0.0001178,2]
[351271702,1738504295742,-533.89,0.0001178,2]
[351271703,1738504295751,-562.9,0.0001178,2]
[351271704,1738504295760,-1003.49,0.0001178,2]
[351271705,1738504295770,-615.37822557,0.0001178,2]
[351271706,1738504295781,-868.83,0.0001178,2]
[351271707,1738504295791,-500.0,0.0001178,2]
[351271708,1738504295801,-2481.47,0.0001178,2]
[351271709,1738504295811,-500.0,0.0001178,2]
[351271710,1738504295820,-599.47,0.0001178,2]
[351271711,1738504295830,-522.22,0.0001178,2]
[351271712,1738504295839,-500.0,0.0001178,2]
[351271713,1738504295849,-500.0,0.0001178,2]
[351271714,1738504295859,-290.50090908,0.0001178,2]
[351271715,1738504295867,-500.0,0.0001178,2]
[351271716,1738504295877,-965.66,0.0001178,2]
[351271717,1738504295886,-1286.64,0.0001178,2]
[351271718,1738504295896,-500.0,0.0001178,2]
[351271719,1738504295906,-529.36,0.0001178,2]
[351271720,1738504295915,-1049.85,0.0001178,2]
[351271721,1738504295924,-500.0,0.0001178,2]
[351271722,1738504295933,-500.0,0.0001178,2]
[351271723,1738504295945,-1006.46,0.0001178,2]
[351271724,1738504295955,-500.0,0.0001178,2]
[351271725,1738504295965,-500.0,0.0001178,2]
[351271726,1738504295975,-614.85,0.0001178,2]
[351271727,1738504295985,-1871.33,0.0001178,2]
[351271728,1738504295996,-500.0,0.0001178,2]
[351271729,1738504296006,-625.4,0.0001178,2]
[351271730,1738504296016,-659.73,0.0001178,2]
[351271731,1738504296026,-500.0,0.0001178,2]
[351271732,1738504296036,-447.51075857,0.0001178,2]
[351271733,1738504296046,-500.0,0.0001178,2]
[351271734,1738504296057,-1846.27,0.0001178,2]
[351271735,1738504296066,-577.18162561,0.0001178,2]
[351271736,1738504296075,-508.88973151,0.0001178,2]
[351271737,1738504296085,-762.07,0.0001178,2]
[351271738,1738504296095,-500.0,0.0001178,2]
[351271739,1738504296105,-589.38,0.0001178,2]
[351271740,1738504296115,-569.09,0.0001178,2]
[351271741,1738504296125,-1236.97,0.0001178,2]
[351271742,1738504296135,-500.0,0.0001178,2]
[351271743,1738504296145,-795.49,0.0001178,2]
[351271744,1738504296155,-636.71,0.0001178,2]
[351271745,1738504296166,-1333.24,0.0001178,2]
[351271746,1738504296183,-1073.33,0.0001178,2]
[351271747,1738504296194,-500.0,0.0001178,2]
[351271748,1738504296204,-1349.72,0.0001178,2]
[351271749,1738504296214,-643.11,0.0001178,2]
[351271750,1738504296225,-500.0,0.0001178,2]
[351271751,1738504296235,-813.06,0.0001178,2]
[351271752,1738504296245,-500.0,0.0001178,2]
[351271753,1738504296255,-500.0,0.0001178,2]
[351271754,1738504296265,-666.25,0.0001178,2]
[351271755,1738504296275,-4276.69,0.0001178,2]
[351271756,1738504296285,-500.0,0.0001178,2]
[351271757,1738504296295,-500.0,0.0001178,2]
[351271758,1738504296305,-687.97,0.0001178,2]
[351271759,1738504296314,-500.0,0.0001178,2]
[351271760,1738504296324,-343.94064902,0.0001178,2]
[351271761,1738504296333,-500.0,0.0001178,2]
[351271762,1738504296343,-1888.12,0.0001178,2]
[351271763,1738504296353,-500.0,0.0001178,2]
[351271764,1738504296363,-504.71704684,0.0001178,2]
[351271765,1738504296372,-500.0,0.0001178,2]
[351271766,1738504296382,-500.0,0.0001178,2]
[351271767,1738504296391,-500.0,0.0001178,2]
[351271768,1738504296401,-500.0,0.0001178,2]
[351271769,1738504296411,-2650.77,0.0001178,2]
[351271770,1738504296420,-889.49,0.0001178,2]
[351271771,1738504296429,-531.14027315,0.0001178,2]
[351271772,1738504296439,-466.15009537,0.0001178,2]
[351271773,1738504296448,-500.0,0.0001178,2]
[351271774,1738504296457,-692.85,0.0001178,2]
[351271775,1738504296466,-2073.43,0.0001178,2]
[351271776,1738504296475,-631.15,0.0001178,2]
[351271777,1738504296484,-500.0,0.0001178,2]
[351271778,1738504296494,-500.0,0.0001178,2]
[351271779,1738504296503,-500.0,0.0001178,2]
[351271780,1738504296513,-1741.6,0.0001178,2]
[351271781,1738504296522,-1164.33,0.0001178,2]
[351271782,1738504296532,-500.0,0.0001178,2]
[351271783,1738504296542,-782.16,0.0001178,2]
[351271784,1738504296551,-1939.2,0.0001178,2]
[351271785,1738504296562,-497.42170741,0.0001178,2]
[351271786,1738504296572,-500.0,0.0001178,2]
[351271787,1738504296582,-500.0,0.0001178,2]
[351271788,1738504296591,-626.85291036,0.0001178,2]
[351271789,1738504296601,-3479.36,0.0001178,2]
[351271790,1738504296610,-500.0,0.0001178,2]
[351271791,1738504296620,-2115.64,0.0001178,2]
[351271792,1738504296630,-500.0,0.0001178,2]
[351271793,1738504296640,-500.0,0.0001178,2]
[351271794,1738504296650,-1744.78,0.0001178,2]
[351271795,1738504296659,-1775.36,0.0001178,2]
[351271796,1738504296670,-500.0,0.0001178,2]
[351271797,1738504296680,-635.62,0.0001178,2]
[351271798,1738504296690,-500.0,0.0001178,2]
[351271799,1738504296700,-517.18456396,0.0001178,2]
[351271800,1738504296710,-635.75,0.0001178,2]
[351271801,1738504296720,-577.14,0.0001178,2]
[351271802,1738504296730,-4758.77,0.0001178,2]
[351271803,1738504296740,-535.02,0.0001178,2]
[351271804,1738504296749,-500.0,0.0001178,2]
[351271805,1738504296913,-1040.09,0.0001178,2]
[351271806,1738504296961,-500.0,0.0001178,2]
[351271807,1738504296971,-1651.88,0.0001178,2]
[351271808,1738504296981,-2719.88,0.0001178,2]
[351271809,1738504296990,-1058.2,0.0001178,2]
[351271810,1738504297000,-500.0,0.0001178,2]
[351271811,1738504297009,-500.0,0.0001178,2]
[351271812,1738504297019,-500.0,0.0001178,2]
[351271813,1738504297028,-1016.81,0.0001178,2]
[351271814,1738504297038,-556.1,0.0001178,2]
[351271815,1738504297048,-500.0,0.0001178,2]
[351271816,1738504297058,-500.0,0.0001178,2]
[351271817,1738504297068,-2588.77,0.0001178,2]
[351271818,1738504297078,-500.0,0.0001178,2]
[351271819,1738504297087,-500.0,0.0001178,2]
[351271820,1738504297097,-500.0,0.0001178,2]
[351271821,1738504297107,-932.81,0.0001178,2]
[351271822,1738504297117,-1942.11,0.0001178,2]
[351271823,1738504297126,-500.0,0.0001178,2]
[351271824,1738504297135,-2418.85,0.0001178,2]
[351271825,1738504297145,-1733.68,0.0001178,2]
[351271826,1738504297155,-2393.49,0.0001178,2]
[351271827,1738504297165,-500.0,0.0001178,2]
[351271828,1738504297179,-566.87,0.0001178,2]
[351271829,1738504297188,-3124.44,0.0001178,2]
[351271830,1738504297200,-692.82,0.0001178,2]
[351271831,1738504297211,-2525.16,0.0001178,2]
[351271832,1738504297220,-519.54900645,0.0001178,2]
[351271833,1738504297231,-1914.95,0.0001178,2]
[351271834,1738504297241,-8288.01,0.0001178,2]
[351271835,1738504297252,-539.18351468,0.0001178,2]
[351271836,1738504297262,-1132.95,0.0001178,2]
[351271837,1738504297272,-884.77,0.0001178,2]
[351271838,1738504297280,-500.0,0.0001178,2]
[351271839,1738504297290,-4152.35,0.0001178,2]
[351271840,1738504297299,-500.0,0.0001178,2]
[351271841,1738504297309,-500.0,0.0001178,2]
[351271842,1738504297318,-500.0,0.0001178,2]
[351271843,1738504297327,-1549.92,0.0001178,2]
[351271844,1738504297335,-3699.04,0.0001178,2]
[351271845,1738504297343,-3349.22,0.0001178,2]
[351271846,1738504297351,-2155.85,0.0001178,2]
[351271847,1738504297359,-553.14,0.0001178,2]
[351271848,1738504297367,-500.0,0.0001178,2]
[351271849,1738504297377,-5222.05,0.0001178,2]
[351271850,1738504297387,-599.56517777,0.0001178,2]
[351271851,1738504297397,-500.0,0.0001178,2]
[351271852,1738504297407,-1265.95,0.0001178,2]
[351271853,1738504297416,-1887.09,0.0001178,2]
[351271854,1738504297425,-4613.26,0.0001178,2]
[351271855,1738504297435,-500.0,0.0001178,2]
[351271856,1738504297446,-500.0,0.0001178,2]
[351271857,1738504297456,-1975.44,0.0001178,2]
[351271858,1738504297467,-7500.21,0.0001178,2]
[351271859,1738504297476,-1842.34,0.0001178,2]
[351271860,1738504297486,-500.0,0.0001178,2]
[351271861,1738504297496,-6467.51,0.0001178,2]
[351271862,1738504297506,-2260.28,0.0001178,2]
[351271863,1738504297516,-500.0,0.0001178,2]
[351271864,1738504297526,-4127.19,0.0001178,2]
[351271865,1738504297536,-625.86,0.0001178,2]
[351271866,1738504297546,-500.0,0.0001178,2]
[351271867,1738504297556,-522.95,0.0001178,2]
[351271868,1738504297566,-2930.25,0.0001178,2]
[351271869,1738504297576,-500.0,0.0001178,2]
[351271870,1738504297585,-500.0,0.0001178,2]
[351271871,1738504297596,-500.0,0.0001178,2]
[351271872,1738504297605,-1487.62,0.0001178,2]
[351271873,1738504297615,-2190.38,0.0001178,2]
[351271874,1738504297625,-7605.13,0.0001178,2]
[351271875,1738504297634,-1340.89,0.0001178,2]
[351271876,1738504297644,-500.0,0.0001178,2]
[351271877,1738504297655,-527.51,0.0001178,2]
[351271878,1738504297664,-500.0,0.0001178,2]
[351271879,1738504297674,-500.0,0.0001178,2]
[351271880,1738504297684,-500.0,0.0001178,2]
[351271881,1738504297697,-500.0,0.0001178,2]
[351271882,1738504297707,-3333.87,0.0001178,2]
[351271883,1738504297718,-500.0,0.0001178,2]
[351271884,1738504297728,-4428.35,0.0001178,2]
[351271885,1738504297739,-500.0,0.0001178,2]
[351271886,1738504297749,-749.13,0.0001178,2]
[351271887,1738504297759,-500.0,0.0001178,2]
[351271888,1738504297768,-724.96,0.0001178,2]
[351271889,1738504297778,-6018.72,0.0001178,2]
[351271890,1738504297789,-2737.51,0.0001178,2]
[351271891,1738504297799,-500.0,0.0001178,2]
[351271892,1738504297809,-2541.32,0.0001178,2]
[351271893,1738504297819,-5735.11,0.0001178,2]
[351271894,1738504297829,-1106.65,0.0001178,2]
[351271895,1738504297838,-700.57,0.0001178,2]
[351271896,1738504297848,-12278.4,0.0001178,2]
[351271897,1738504297858,-1347.61,0.0001178,2]
[351271898,1738504297867,-500.0,0.0001178,2]
[351271899,1738504297877,-4277.99,0.0001178,2]
[351271900,1738504297887,-2014.34,0.0001178,2]
[351271901,1738504297897,-9838.32,0.0001178,2]
[351271902,1738504297906,-543.94,0.0001178,2]
[351271903,1738504297916,-1686.35,0.0001178,2]
[351271904,1738504297926,-500.0,0.0001178,2]
[351271905,1738504297936,-500.0,0.0001178,2]
[351271906,1738504297946,-13955.14,0.0001178,2]
[351271907,1738504297956,-500.15,0.0001178,2]
[351271908,1738504297965,-500.0,0.0001178,2]
[351271909,1738504297976,-8050.75,0.0001178,2]
[351271910,1738504297986,-500.0,0.0001178,2]
[351271911,1738504297996,-500.0,0.0001178,2]
[351271912,1738504298006,-500.0,0.0001178,2]
[351271913,1738504298016,-500.0,0.0001178,2]
[351271914,1738504298026,-406.72230884,0.0001178,2]
[351271915,1738504298036,-4979.31,0.0001178,2]
[351271916,1738504298046,-500.0,0.0001178,2]
[351271917,1738504298057,-7528.65,0.0001178,2]
[351271918,1738504298067,-500.0,0.0001178,2]
[351271919,1738504298077,-500.0,0.0001178,2]
[351271920,1738504298087,-8671.46,0.0001178,2]
[351271921,1738504298096,-1328.42,0.0001178,2]
[351271922,1738504298106,-500.0,0.0001178,2]
[351271923,1738504298116,-500.0,0.0001178,2]
[351271924,1738504298126,-500.0,0.0001178,2]
[351271925,1738504298136,-490.01583625,0.0001178,2]
[351271926,1738504298146,-500.0,0.0001178,2]
[351271927,1738504298155,-500.0,0.0001178,2]
[351271928,1738504298166,-500.0,0.0001178,2]
[351271929,1738504298179,-500.0,0.0001178,2]
[351271930,1738504298189,-4988.6,0.0001178,2]
[351271931,1738504298202,-500.0,0.0001178,2]
[351271932,1738504298212,-1284.16,0.0001178,2]
[351271933,1738504298222,-651.92,0.0001178,2]
[351271934,1738504298232,-2888.57,0.0001178,2]
[351271935,1738504298243,-572.58,0.0001178,2]
[351271936,1738504298253,-663.18,0.0001178,2]
[351271937,1738504298263,-500.0,0.0001178,2]
[351271938,1738504298273,-1242.68,0.0001178,2]
[351271939,1738504298282,-500.0,0.0001178,2]
[351271940,1738504298291,-500.0,0.0001178,2]
[351271941,1738504298301,-3206.11,0.0001178,2]
[351271942,1738504298310,-692.3,0.0001178,2]
[351271943,1738504298320,-500.0,0.0001178,2]
[351271944,1738504298329,-3656.21,0.0001178,2]
[351271945,1738504298339,-500.0,0.0001178,2]
[351271946,1738504298349,-552.81,0.0001178,2]
[351271947,1738504298359,-500.0,0.0001178,2]
[351271948,1738504298370,-500.0,0.0001178,2]
[351271949,1738504298380,-500.0,0.0001178,2]
[351271950,1738504298390,-500.0,0.0001178,2]
[351271951,1738504298400,-509.96755594,0.0001178,2]
[351271952,1738504298410,-3947.41,0.0001178,2]
[351271953,1738504298420,-4905.43,0.0001178,2]
[351271954,1738504298430,-1981.9,0.0001178,2]
[351271955,1738504298439,-1643.29,0.0001178,2]
[351271956,1738504298451,-500.0,0.0001178,2]
[351271957,1738504298461,-14841.38,0.0001178,2]
[351271958,1738504298471,-3557.6,0.0001178,2]
[351271959,1738504298481,-542.27,0.0001178,2]
[351271960,1738504298490,-503.15610595,0.0001178,2]
[351271961,1738504298499,-1169.41,0.0001178,2]
[351271962,1738504298508,-500.0,0.0001178,2]
[351271963,1738504298518,-1818.01,0.0001178,2]
[351271964,1738504298528,-794.77,0.0001178,2]
[351271965,1738504298537,-12108.26,0.0001178,2]
[351271966,1738504298547,-500.0,0.0001178,2]
[351271967,1738504298556,-500.0,0.0001178,2]
[351271968,1738504298565,-500.0,0.0001178,2]
[351271969,1738504298574,-1065.17,0.0001178,2]
[351271970,1738504298584,-2162.4,0.0001178,2]
[351271971,1738504298593,-500.0,0.0001178,2]
[351271972,1738504298602,-500.0,0.0001178,2]
[351271973,1738504298611,-11811.14,0.0001178,2]
[351271974,1738504298621,-500.0,0.0001178,2]
[351271975,1738504298630,-2656.04,0.0001178,2]
[351271976,1738504298639,-500.0,0.0001178,2]
[351271977,1738504298649,-1449.28,0.0001178,2]
[351271978,1738504298658,-500.0,0.0001178,2]
[351271979,1738504298667,-5655.33,0.0001178,2]
[351271980,1738504298676,-725.88,0.0001178,2]
[351271981,1738504298685,-1879.37,0.0001178,2]
[351271982,1738504298696,-500.0,0.0001178,2]
[351271983,1738504298706,-500.0,0.0001178,2]
[351271984,1738504298715,-2237.55,0.0001178,2]
[351271985,1738504298725,-500.0,0.0001178,2]
[351271986,1738504298735,-1663.9,0.0001178,2]
[351271987,1738504298744,-500.0,0.0001178,2]
[351271988,1738504298754,-500.0,0.0001178,2]
[351271989,1738504298763,-500.89,0.0001178,2]
[351271990,1738504298773,-2994.29,0.0001178,2]
[351271991,1738504298783,-651.46,0.0001178,2]
[351271992,1738504298793,-500.0,0.0001178,2]
[351271993,1738504298802,-500.0,0.0001178,2]
[351271994,1738504298811,-899.76,0.0001178,2]
[351271995,1738504298820,-10069.92,0.0001178,2]
[351271996,1738504298830,-547.04491183,0.0001178,2]
[351271997,1738504298839,-2131.06,0.0001178,2]
[351271998,1738504298848,-500.0,0.0001178,2]
[351271999,1738504298857,-500.0,0.0001178,2]
[351272000,1738504298867,-255.0,0.0001179,2]